fUSD/lending_fUSD_20250610
["ID","MTS","AMOUNT","RATE_DAILY","PERIOD"]
[365233587,1749559833455,-490.0,0.00016438,2]
[365233588,1749559833479,-490.0,0.00016438,2]
[365233589,1749559833502,-480.0,0.00016438,2]
[365233590,1749559833526,-174.08693709,0.00016438,2]
[365233591,1749559833553,-490.0,0.00016438,2]
[365233592,1749559833577,-490.0,0.00016438,2]
[365233593,1749559833601,-200.0,0.00016473,2]
[365233594,1749559833703,480.0,0.00016438,2]
[365233595,1749559834268,490.0,0.00016438,2]
[365233596,1749559834557,490.0,0.00016438,2]
[365233597,1749559835160,1285.54,0.00016438,2]
[365233598,1749559835790,-80.45204773,0.00016602,2]
[365233599,1749559835800,-327.55210789,0.00016602,2]
[365233600,1749559835849,-162.44789211,0.00016602,2]
[365233601,1749559835858,-256.43,0.00016602,2]
[365233602,1749559835868,-490.0,0.00016602,2]
[365233603,1749559835878,-490.0,0.00016602,2]
[365233604,1749559835887,-490.0,0.00016602,2]
[365233605,1749559835896,-490.0,0.00016602,2]
[365233606,1749559835905,-347.60865685,0.00016602,2]
[365233607,1749559835916,-142.39134315,0.00016602,2]
[365233608,1749559835926,-226.05770325,0.00016602,2]
[365233609,1749559835935,-49.29301976,0.00016602,2]
[365233610,1749559835947,-440.70698024,0.00016602,2]
[365233611,1749559835957,-382.2786429,0.00016602,2]
[365233670,1749559836794,607.03,0.00016438,2]
[365233803,1749559838188,-107.7213571,0.00016602,2]
[365233804,1749559838198,-470.0,0.00016602,2]
[365233806,1749559838207,-490.0,0.00016602,2]
[365233809,1749559838225,-490.0,0.00016602,2]
[365233811,1749559838236,-490.0,0.00016602,2]
[365233813,1749559838246,-490.0,0.00016602,2]
[365233814,1749559838256,-490.0,0.00016602,2]
[365233816,1749559838265,-521.52,0.00016602,2]
[365233818,1749559838276,-490.0,0.00016602,2]
[365233820,1749559838285,-478.39960099,0.00016602,2]
[365233822,1749559838295,-490.0,0.00016602,2]
[365233824,1749559838304,-470.0,0.00016602,2]
[365233826,1749559838314,-459.12404307,0.00016602,2]
[365233828,1749559838324,-486.21155777,0.00016602,2]
[365233830,1749559838334,-226.32064007,0.00016602,2]
[365233845,1749559838472,-263.67935993,0.00016602,2]
[365233847,1749559838481,-409.62033146,0.00016602,2]
[365233851,1749559838511,502.34256146,0.00016438,2]
[365233854,1749559838528,-46.53966854,0.00016602,2]
[365233856,1749559838538,-500.66,0.00016602,2]
[365233858,1749559838547,-490.0,0.00016602,2]
[365233860,1749559838562,-470.0,0.00016602,2]
[365233862,1749559838571,-490.0,0.00016602,2]
[365233864,1749559838580,-470.0,0.00016602,2]
[365233866,1749559838590,-490.0,0.00016602,2]
[365233868,1749559838600,-490.0,0.00016602,2]
[365233870,1749559838610,-490.0,0.00016602,2]
[365233872,1749559838619,-490.0,0.00016602,2]
[365233874,1749559838629,-490.0,0.00016602,2]
[365233876,1749559838638,-290.20033146,0.00016602,2]
[365233878,1749559838650,-179.79966854,0.00016602,2]
[365233880,1749559838659,-490.0,0.00016602,2]
[365233882,1749559838673,-470.0,0.00016602,2]
[365233884,1749559838683,-1000.0,0.00016602,2]
[365233886,1749559838692,-365.64488848,0.00016602,2]
[365233888,1749559838702,-20.44783273,0.00016602,2]
[365233891,1749559838715,-449.55216727,0.00016602,2]
[365233893,1749559838725,-490.0,0.00016602,2]
[365233895,1749559838736,-236.56783273,0.00016602,2]
[365233897,1749559838749,-233.43216727,0.00016602,2]
[365233899,1749559838764,-470.0,0.00016602,2]
[365233901,1749559838775,-483.06578116,0.00016602,2]
[365233904,1749559838785,-470.0,0.00016602,2]
[365233906,1749559838795,-267.70205174,0.00016602,2]
[365233909,1749559838815,-222.29794826,0.00016602,2]
[365233911,1749559838825,-470.0,0.00016602,2]
[365233913,1749559838834,-470.0,0.00016602,2]
[365233915,1749559838844,-470.0,0.00016602,2]
[365233917,1749559838853,-490.0,0.00016602,2]
[365233919,1749559838863,-490.0,0.00016602,2]
[365233921,1749559838873,-470.0,0.00016602,2]
[365233923,1749559838883,-470.0,0.00016602,2]
[365233925,1749559838892,-490.0,0.00016602,2]
[365233927,1749559838902,-621.54,0.00016602,2]
[365233929,1749559838911,-470.0,0.00016602,2]
[365233931,1749559838921,-470.0,0.00016602,2]
[365233933,1749559838930,-490.0,0.00016602,2]
[365233935,1749559838940,-476.41,0.00016602,2]
[365233937,1749559838949,-490.0,0.00016602,2]
[365233939,1749559838959,-470.0,0.00016602,2]
[365233941,1749559838968,-490.0,0.00016602,2]
[365233943,1749559838978,-470.0,0.00016602,2]
[365233945,1749559838987,-315.08184554,0.00016602,2]
[365233947,1749559838997,-490.0,0.00016602,2]
[365233949,1749559839006,-490.0,0.00016602,2]
[365233951,1749559839016,-490.0,0.00016602,2]
[365233953,1749559839026,-490.0,0.00016602,2]
[365233955,1749559839035,-490.0,0.00016602,2]
[365233957,1749559839045,-490.0,0.00016602,2]
[365233959,1749559839055,-490.0,0.00016602,2]
[365233961,1749559839064,-490.0,0.00016602,2]
[365233963,1749559839074,-490.0,0.00016602,2]
[365233965,1749559839084,-490.0,0.00016602,2]
[365233967,1749559839093,-470.0,0.00016602,2]
[365233969,1749559839103,-490.0,0.00016602,2]
[365233971,1749559839113,-246.3626344,0.00016602,2]
[365233973,1749559839127,-490.0,0.00016602,2]
[365233975,1749559839136,-490.0,0.00016602,2]
[365233977,1749559839146,-490.0,0.00016602,2]
[365233979,1749559839156,-470.0,0.00016602,2]
[365233981,1749559839165,-490.0,0.00016602,2]
[365233983,1749559839175,-490.0,0.00016602,2]
[365233985,1749559839185,-490.0,0.00016602,2]
[365233987,1749559839195,-490.0,0.00016602,2]
[365233989,1749559839204,-610.09340001,0.00016602,2]
[365233991,1749559839213,-490.0,0.00016602,2]
[365233993,1749559839223,-470.0,0.00016602,2]
[365233995,1749559839233,-692.98,0.00016602,2]
[365233997,1749559839243,-490.0,0.00016602,2]
[365233999,1749559839253,-490.0,0.00016602,2]
[365234001,1749559839263,-490.0,0.00016602,2]
[365234004,1749559839274,-470.0,0.00016602,2]
[365234006,1749559839284,-490.0,0.00016602,2]
[365234008,1749559839294,-490.0,0.00016602,2]
[365234010,1749559839305,-490.0,0.00016602,2]
[365234012,1749559839314,-470.0,0.00016602,2]
[365234014,1749559839326,-622.07009867,0.00016602,2]
[365234016,1749559839336,-490.0,0.00016602,2]
[365234018,1749559839346,-305.88,0.00016602,2]
[365234020,1749559839357,-490.0,0.00016602,2]
[365234022,1749559839368,-490.0,0.00016602,2]
[365234024,1749559839379,-490.0,0.00016602,2]
[365234026,1749559839389,-490.0,0.00016602,2]
[365234028,1749559839400,-490.0,0.00016602,2]
[365234031,1749559839413,-515.05617284,0.00016602,2]
[365234033,1749559839423,-490.0,0.00016602,2]
[365234035,1749559839433,-490.0,0.00016602,2]
[365234037,1749559839443,-490.0,0.00016602,2]
[365234039,1749559839453,-470.0,0.00016602,2]
[365234041,1749559839462,-490.0,0.00016602,2]
[365234043,1749559839472,-490.0,0.00016602,2]
[365234045,1749559839482,-490.0,0.00016602,2]
[365234047,1749559839493,-490.0,0.00016602,2]
[365234049,1749559839502,-490.0,0.00016602,2]
[365234051,1749559839512,-490.0,0.00016602,2]
[365234053,1749559839524,-1138.97,0.00016602,2]
[365234055,1749559839534,-490.0,0.00016602,2]
[365234057,1749559839543,-392.45804945,0.00016602,2]
[365234059,1749559839554,-490.0,0.00016602,2]
[365234061,1749559839566,-513.04,0.00016602,2]
[365234063,1749559839576,-232.09887461,0.00016602,2]
[365234065,1749559839586,-518.97,0.00016602,2]
[365234067,1749559839597,-490.0,0.00016602,2]
[365234069,1749559839608,-470.0,0.00016602,2]
[365234071,1749559839617,-390.09534661,0.00016602,2]
[365234074,1749559839629,-490.0,0.00016602,2]
[365234076,1749559839639,-490.0,0.00016602,2]
[365234078,1749559839649,-490.0,0.00016602,2]
[365234080,1749559839658,-490.0,0.00016602,2]
[365234082,1749559839668,-490.0,0.00016602,2]
[365234084,1749559839677,-490.0,0.00016602,2]
[365234086,1749559839687,-490.0,0.00016602,2]
[365234087,1749559839696,-490.0,0.00016602,2]
[365234089,1749559839706,-1331.31,0.00016602,2]
[365234092,1749559839715,-490.0,0.00016602,2]
[365234093,1749559839725,-490.0,0.00016602,2]
[365234095,1749559839734,-490.0,0.00016602,2]
[365234098,1749559839744,-490.0,0.00016602,2]
[365234099,1749559839753,-490.0,0.00016602,2]
[365234101,1749559839763,-490.0,0.00016602,2]
[365234102,1749559839772,-490.0,0.00016602,2]
[365234103,1749559839782,-490.0,0.00016602,2]
[365234104,1749559839791,-490.0,0.00016602,2]
[365234105,1749559839804,-490.0,0.00016602,2]
[365234106,1749559839813,-490.0,0.00016602,2]
[365234107,1749559839823,-490.0,0.00016602,2]
[365234108,1749559839832,-490.0,0.00016602,2]
[365234109,1749559839842,-490.0,0.00016602,2]
[365234110,1749559839851,-490.0,0.00016602,2]
[365234111,1749559839860,-490.0,0.00016602,2]
[365234112,1749559839869,-490.0,0.00016602,2]
[365234114,1749559839878,-571.88,0.00016602,2]
[365234116,1749559839888,-490.0,0.00016602,2]
[365234118,1749559839897,-470.0,0.00016602,2]
[365234120,1749559839907,-337.15627434,0.00016602,2]
[365234122,1749559839917,-490.0,0.00016602,2]
[365234124,1749559839927,-490.0,0.00016602,2]
[365234126,1749559839937,-490.0,0.00016602,2]
[365234129,1749559839955,-490.0,0.00016602,2]
[365234131,1749559839966,-222.2478134,0.00016602,2]
[365234133,1749559839975,-490.0,0.00016602,2]
[365234135,1749559839985,-490.0,0.00016602,2]
[365234137,1749559839994,-490.0,0.00016602,2]
[365234139,1749559840004,-490.0,0.00016602,2]
[365234141,1749559840014,-174.14,0.00016602,2]
[365234143,1749559840024,-490.0,0.00016602,2]
[365234145,1749559840035,-490.0,0.00016602,2]
[365234147,1749559840045,-490.0,0.00016602,2]
[365234149,1749559840054,-490.0,0.00016602,2]
[365234152,1749559840064,-490.0,0.00016602,2]
[365234153,1749559840073,-7871.67,0.00016602,2]
[365234156,1749559840083,-222.52304128,0.00016602,2]
[365234158,1749559840094,-490.0,0.00016602,2]
[365234160,1749559840104,-490.0,0.00016602,2]
[365234162,1749559840114,-490.0,0.00016602,2]
[365234164,1749559840123,-312.7315456,0.00016602,2]
[365234166,1749559840133,-490.0,0.00016602,2]
[365234168,1749559840142,-1285.54,0.00016602,2]
[365234170,1749559840152,-607.03,0.00016602,2]
[365234172,1749559840161,-200.0,0.00016638,2]
[365234174,1749559840171,-151.0,0.00016703,2]
[365234176,1749559840181,-37781.27227239,0.00016745,2]
[365234178,1749559840191,-151.0,0.00016767,2]
[365234180,1749559840201,-151.0,0.00016767,2]
[365234182,1749559840212,-151.0,0.00016767,2]
[365234184,1749559840222,-151.0,0.00016767,2]
[365234186,1749559840232,-151.0,0.00016767,2]
[365234188,1749559840241,-151.0,0.00016767,2]
[365234190,1749559840251,-281.340244,0.00016767,2]
[365234192,1749559840261,-151.0,0.00016767,2]
[365234194,1749559840271,-281.340244,0.00016767,2]
[365234196,1749559840281,-490.0,0.00016767,2]
[365234198,1749559840291,-513.98,0.00016767,2]
[365234200,1749559840300,-490.0,0.00016767,2]
[365234202,1749559840310,-490.0,0.00016767,2]
[365234204,1749559840319,-490.0,0.00016767,2]
[365234206,1749559840329,-460.0,0.00016767,2]
[365234208,1749559840339,-460.0,0.00016767,2]
[365234210,1749559840349,-460.0,0.00016767,2]
[365234212,1749559840359,-490.0,0.00016767,2]
[365234214,1749559840368,-312.42,0.00016767,2]
[365234216,1749559840378,-490.0,0.00016767,2]
[365234218,1749559840387,-490.0,0.00016767,2]
[365234220,1749559840397,-490.0,0.00016767,2]
[365234222,1749559840407,-460.0,0.00016767,2]
[365234224,1749559840416,-490.0,0.00016767,2]
[365234226,1749559840426,-407.78364189,0.00016767,2]
[365234228,1749559840435,-218.16,0.00016767,2]
[365234230,1749559840445,-231.17,0.00016767,2]
[365234232,1749559840454,-490.0,0.00016767,2]
[365234234,1749559840463,-490.0,0.00016767,2]
[365234265,1749559840752,-490.0,0.00016767,2]
[365234267,1749559840761,-490.0,0.00016767,2]
[365234269,1749559840771,-490.0,0.00016767,2]
[365234271,1749559840782,-490.0,0.00016767,2]
[365234273,1749559840791,-367.99,0.00016767,2]
[365234275,1749559840801,-490.0,0.00016767,2]
[365234277,1749559840810,-420.48,0.00016767,2]
[365234279,1749559840819,-490.0,0.00016767,2]
[365234281,1749559840829,-480.0,0.00016767,2]
[365234283,1749559840840,-466.33173813,0.00016767,2]
[365234284,1749559840852,-460.0,0.00016767,2]
[365234286,1749559840864,-490.0,0.00016767,2]
[365234288,1749559840874,-480.88,0.00016767,2]
[365234290,1749559840883,-490.0,0.00016767,2]
[365234292,1749559840893,-490.0,0.00016767,2]
[365234295,1749559840902,-490.0,0.00016767,2]
[365234297,1749559840914,-490.0,0.00016767,2]
[365234299,1749559840924,-490.0,0.00016767,2]
[365234301,1749559840933,-490.0,0.00016767,2]
[365234303,1749559840947,-490.0,0.00016767,2]
[365234305,1749559840956,-490.0,0.00016767,2]
[365234307,1749559840965,-404.98,0.00016767,2]
[365234309,1749559840977,-460.0,0.00016767,2]
[365234311,1749559840986,-490.0,0.00016767,2]
[365234313,1749559840996,-490.0,0.00016767,2]
[365234315,1749559841006,-490.0,0.00016767,2]
[365234317,1749559841014,-490.0,0.00016767,2]
[365234319,1749559841025,-490.0,0.00016767,2]
[365234321,1749559841034,-490.0,0.00016767,2]
[365234323,1749559841044,-490.0,0.00016767,2]
[365234325,1749559841053,-575.90019315,0.00016767,2]
[365234327,1749559841062,-490.0,0.00016767,2]
[365234328,1749559841071,-522.9342116,0.00016767,2]
[365234330,1749559841081,-692.98,0.00016767,2]
[365234332,1749559841090,-490.0,0.00016767,2]
[365234335,1749559841100,-490.0,0.00016767,2]
[365234338,1749559841110,-490.0,0.00016767,2]
[365234341,1749559841119,-490.0,0.00016767,2]
[365234344,1749559841128,-490.0,0.00016767,2]
[365234347,1749559841138,-490.0,0.00016767,2]
[365234350,1749559841148,-490.0,0.00016767,2]
[365234352,1749559841157,-490.0,0.00016767,2]
[365234354,1749559841166,-490.0,0.00016767,2]
[365234356,1749559841175,-490.0,0.00016767,2]
[365234358,1749559841184,-490.0,0.00016767,2]
[365234360,1749559841194,-490.0,0.00016767,2]
[365234362,1749559841203,-490.0,0.00016767,2]
[365234364,1749559841213,-490.0,0.00016767,2]
[365234366,1749559841223,-620.24,0.00016767,2]
[365234368,1749559841232,-490.0,0.00016767,2]
[365234370,1749559841242,-490.0,0.00016767,2]
[365234372,1749559841252,-490.0,0.00016767,2]
[365234374,1749559841261,-490.0,0.00016767,2]
[365234376,1749559841272,-490.0,0.00016767,2]
[365234378,1749559841281,-237.33,0.00016767,2]
[365234380,1749559841292,-1138.97,0.00016767,2]
[365234382,1749559841302,-361.37,0.00016767,2]
[365234384,1749559841312,-317.29005049,0.00016767,2]
[365234386,1749559841322,-513.04,0.00016767,2]
[365234387,1749559841331,-518.97,0.00016767,2]
[365234388,1749559841341,-490.0,0.00016767,2]
[365234389,1749559841351,-490.0,0.00016767,2]
[365234390,1749559841361,-490.0,0.00016767,2]
[365234391,1749559841371,-490.0,0.00016767,2]
[365234392,1749559841380,-490.0,0.00016767,2]
[365234393,1749559841389,-490.0,0.00016767,2]
[365234394,1749559841399,-490.0,0.00016767,2]
[365234395,1749559841408,-490.0,0.00016767,2]
[365234396,1749559841418,-490.0,0.00016767,2]
[365234397,1749559841427,-1331.31,0.00016767,2]
[365234398,1749559841437,-490.0,0.00016767,2]
[365234399,1749559841446,-347.55,0.00016767,2]
[365234400,1749559841456,-490.0,0.00016767,2]
[365234401,1749559841466,-311.35736251,0.00016767,2]
[365234402,1749559841475,-490.0,0.00016767,2]
[365234403,1749559841485,-490.0,0.00016767,2]
[365234405,1749559841495,-490.0,0.00016767,2]
[365234406,1749559841504,-490.0,0.00016767,2]
[365234408,1749559841514,-490.0,0.00016767,2]
[365234410,1749559841524,-490.0,0.00016767,2]
[365234412,1749559841533,-490.0,0.00016767,2]
[365234414,1749559841543,-490.0,0.00016767,2]
[365234416,1749559841553,-490.0,0.00016767,2]
[365234417,1749559841565,-490.0,0.00016767,2]
[365234418,1749559841575,-490.0,0.00016767,2]
[365234419,1749559841584,-490.0,0.00016767,2]
[365234420,1749559841594,-490.0,0.00016767,2]
[365234421,1749559841603,-571.88,0.00016767,2]
[365234422,1749559841612,-490.0,0.00016767,2]
[365234423,1749559841622,-450.0,0.00016767,2]
[365234424,1749559841632,-490.0,0.00016767,2]
[365234425,1749559841641,-490.0,0.00016767,2]
[365234426,1749559841651,-450.0,0.00016767,2]
[365234427,1749559841660,-490.0,0.00016767,2]
[365234428,1749559841670,-490.0,0.00016767,2]
[365234429,1749559841680,-450.0,0.00016767,2]
[365234430,1749559841690,-490.0,0.00016767,2]
[365234431,1749559841699,-450.0,0.00016767,2]
[365234432,1749559841709,-259.67,0.00016767,2]
[365234433,1749559841718,-490.0,0.00016767,2]
[365234434,1749559841728,-490.0,0.00016767,2]
[365234435,1749559841737,-450.0,0.00016767,2]
[365234436,1749559841747,-7871.67,0.00016767,2]
[365234437,1749559841757,-450.0,0.00016767,2]
[365234438,1749559841767,-337.73820259,0.00016767,2]
[365234439,1749559841776,-490.0,0.00016767,2]
[365234440,1749559841786,-490.0,0.00016767,2]
[365234441,1749559841795,-1285.54,0.00016767,2]
[365234442,1749559841805,-607.03,0.00016767,2]
[365234443,1749559841814,-340.0,0.00016882,2]
[365234444,1749559841823,-150.0,0.00016886,7]
[365234445,1749559841833,-500.0,0.0001693,2]
[365234446,1749559841842,-500.0,0.0001693,2]
[365234447,1749559841851,-490.0,0.00016931,2]
[365234450,1749559841861,-450.0,0.00016931,2]
[365234451,1749559841871,-505.85,0.00016931,2]
[365234454,1749559841881,-490.0,0.00016931,2]
[365234455,1749559841890,-490.0,0.00016931,2]
[365234457,1749559841899,-497.2,0.00016931,2]
[365234460,1749559841909,-401.14,0.00016931,2]
[365234461,1749559841918,-490.0,0.00016931,2]
[365234463,1749559841928,-490.0,0.00016931,2]
[365234465,1749559841937,-162.01655721,0.00016931,2]
[365234467,1749559841947,-490.0,0.00016931,2]
[365234470,1749559841956,-512.63085268,0.00016931,2]
[365234472,1749559841965,-490.0,0.00016931,2]
[365234474,1749559841975,-490.0,0.00016931,2]
[365234476,1749559841984,-490.0,0.00016931,2]
[365234478,1749559841994,-418.18364411,0.00016931,2]
[365234480,1749559842003,-360.30263286,0.00016931,2]
[365234482,1749559842014,-490.0,0.00016931,2]
[365234483,1749559842023,-490.0,0.00016931,2]
[365234485,1749559842032,-238.61320116,0.00016931,2]
[365234488,1749559842042,-490.0,0.00016931,2]
[365234490,1749559842051,-450.0,0.00016931,2]
[365234491,1749559842060,-490.0,0.00016931,2]
[365234493,1749559842070,-450.0,0.00016931,2]
[365234495,1749559842079,-490.0,0.00016931,2]
[365234497,1749559842088,-450.0,0.00016931,2]
[365234500,1749559842098,-490.0,0.00016931,2]
[365234502,1749559842108,-490.0,0.00016931,2]
[365234503,1749559842117,-490.0,0.00016931,2]
[365234505,1749559842127,-450.0,0.00016931,2]
[365234507,1749559842136,-450.0,0.00016931,2]
[365234509,1749559842145,-450.0,0.00016931,2]
[365234512,1749559842155,-450.0,0.00016931,2]
[365234514,1749559842166,-450.0,0.00016931,2]
[365234516,1749559842175,-692.98,0.00016931,2]
[365234518,1749559842185,-490.0,0.00016931,2]
[365234520,1749559842195,-450.0,0.00016931,2]
[365234521,1749559842204,-450.0,0.00016931,2]
[365234523,1749559842213,-490.0,0.00016931,2]
[365234526,1749559842223,-601.49,0.00016931,2]
[365234528,1749559842232,-450.0,0.00016931,2]
[365234529,1749559842241,-450.0,0.00016931,2]
[365234531,1749559842251,-490.0,0.00016931,2]
[365234534,1749559842260,-490.0,0.00016931,2]
[365234536,1749559842270,-450.0,0.00016931,2]
[365234537,1749559842279,-490.0,0.00016931,2]
[365234540,1749559842288,-490.0,0.00016931,2]
[365234541,1749559842298,-490.0,0.00016931,2]
[365234544,1749559842308,-490.0,0.00016931,2]
[365234545,1749559842317,-490.0,0.00016931,2]
[365234548,1749559842327,-490.0,0.00016931,2]
[365234549,1749559842336,-490.0,0.00016931,2]
[365234552,1749559842346,-490.0,0.00016931,2]
[365234554,1749559842356,-490.0,0.00016931,2]
[365234556,1749559842365,-1138.97,0.00016931,2]
[365234558,1749559842375,-513.04,0.00016931,2]
[365234560,1749559842384,-518.97,0.00016931,2]
[365234562,1749559842393,-490.0,0.00016931,2]
[365234564,1749559842404,-490.0,0.00016931,2]
[365234566,1749559842414,-587.64170666,0.00016931,2]
[365234568,1749559842423,-490.0,0.00016931,2]
[365234570,1749559842432,-490.0,0.00016931,2]
[365234572,1749559842442,-490.0,0.00016931,2]
[365234574,1749559842451,-490.0,0.00016931,2]
[365234575,1749559842460,-490.0,0.00016931,2]
[365234577,1749559842470,-450.0,0.00016931,2]
[365234579,1749559842479,-1331.31,0.00016931,2]
[365234581,1749559842488,-490.0,0.00016931,2]
[365234584,1749559842498,-450.0,0.00016931,2]
[365234585,1749559842507,-490.0,0.00016931,2]
[365234588,1749559842516,-490.0,0.00016931,2]
[365234590,1749559842527,-490.0,0.00016931,2]
[365234592,1749559842536,-450.0,0.00016931,2]
[365234594,1749559842545,-490.0,0.00016931,2]
[365234596,1749559842555,-450.0,0.00016931,2]
[365234598,1749559842572,-450.0,0.00016931,2]
[365234600,1749559842581,-490.0,0.00016931,2]
[365234602,1749559842590,-490.0,0.00016931,2]
[365234604,1749559842601,-490.0,0.00016931,2]
[365234606,1749559842611,-490.0,0.00016931,2]
[365234608,1749559842619,-490.0,0.00016931,2]
[365234610,1749559842629,-571.88,0.00016931,2]
[365234612,1749559842638,-490.0,0.00016931,2]
[365234614,1749559842647,-450.0,0.00016931,2]
[365234616,1749559842657,-490.0,0.00016931,2]
[365234618,1749559842666,-490.0,0.00016931,2]
[365234620,1749559842681,-490.0,0.00016931,2]
[365234622,1749559842691,-490.0,0.00016931,2]
[365234624,1749559842701,-490.0,0.00016931,2]
[365234626,1749559842710,-490.0,0.00016931,2]
[365234628,1749559842719,-400.0,0.00016931,2]
[365234630,1749559842728,-7871.67,0.00016931,2]
[365234632,1749559842737,-345.28,0.00016931,2]
[365234634,1749559842746,-450.0,0.00016931,2]
[365234636,1749559842755,-1285.54,0.00016931,2]
[365234638,1749559842766,-607.03,0.00016931,2]
[365234640,1749559842776,-1000.0,0.00017021,2]
[365234642,1749559842785,-1000.0,0.00017021,2]
[365234644,1749559842794,-151.0,0.00017095,2]
[365234646,1749559842803,-151.0,0.00017095,2]
[365234648,1749559842813,-244.996998,0.00017095,2]
[365234650,1749559842822,-151.0,0.00017095,2]
[365234652,1749559842831,-151.0,0.00017095,2]
[365234654,1749559842840,-151.0,0.00017095,2]
[365234656,1749559842849,-281.340244,0.00017095,2]
[365234658,1749559842858,-151.0,0.00017095,2]
[365234660,1749559842867,-281.340244,0.00017095,2]
[365234662,1749559842877,-549.34,0.00017095,2]
[365234664,1749559842886,-235.23,0.00017095,2]
[365234666,1749559842895,-203.78,0.00017095,2]
[365234668,1749559842903,-490.0,0.00017095,2]
[365234670,1749559842912,-490.0,0.00017095,2]
[365234671,1749559842922,-490.0,0.00017095,2]
[365234673,1749559842931,-440.0,0.00017095,2]
[365234676,1749559842940,-440.0,0.00017095,2]
[365234678,1749559842950,-424.83,0.00017095,2]
[365234680,1749559842959,-195.32,0.00017095,2]
[365234682,1749559842968,-574.32,0.00017095,2]
[365234684,1749559842977,-386.08,0.00017095,2]
[365234686,1749559842986,-490.0,0.00017095,2]
[365234687,1749559842995,-490.0,0.00017095,2]
[365234690,1749559843005,-440.0,0.00017095,2]
[365234691,1749559843014,-490.0,0.00017095,2]
[365234694,1749559843023,-490.0,0.00017095,2]
[365234696,1749559843032,-692.98,0.00017095,2]
[365234697,1749559843042,-494.94,0.00017095,2]
[365234702,1749559843051,-490.0,0.00017095,2]
[365234705,1749559843061,-490.0,0.00017095,2]
[365234707,1749559843071,-226.28,0.00017095,2]
[365234709,1749559843080,-490.0,0.00017095,2]
[365234711,1749559843090,-490.0,0.00017095,2]
[365234713,1749559843099,-490.0,0.00017095,2]
[365234715,1749559843108,-490.0,0.00017095,2]
[365234717,1749559843117,-490.0,0.00017095,2]
[365234719,1749559843127,-490.0,0.00017095,2]
[365234721,1749559843136,-490.0,0.00017095,2]
[365234723,1749559843145,-490.0,0.00017095,2]
[365234725,1749559843155,-490.0,0.00017095,2]
[365234727,1749559843164,-1138.97,0.00017095,2]
[365234729,1749559843173,-513.04,0.00017095,2]
[365234731,1749559843183,-518.97,0.00017095,2]
[365234734,1749559843193,-490.0,0.00017095,2]
[365234736,1749559843202,-490.0,0.00017095,2]
[365234737,1749559843212,-490.0,0.00017095,2]
[365234743,1749559843222,-490.0,0.00017095,2]
[365234747,1749559843231,-490.0,0.00017095,2]
[365234750,1749559843241,-490.0,0.00017095,2]
[365234752,1749559843251,-490.0,0.00017095,2]
[365234757,1749559843269,-1331.31,0.00017095,2]
[365234762,1749559843279,-490.0,0.00017095,2]